bitfinex-derivatives/quotes_SOLF0:USTF0_20250714
["timestamp","ask_amount","ask_price","bid_price","bid_amount"]
[1752507756737,2.08,164.96,164.95,3.57]
[1752507756938,6.0606,164.96,164.95,3.57]
[1752507757139,4.53630691,164.97,164.89,3.57]
[1752507757339,2.08,164.98,164.91,3.57]
[1752507757736,2.08,164.98,164.94,3.57]
[1752507758640,6.0604,164.97,164.95,3.57]
[1752507758840,6.0604,164.97,164.91,3.57]
[1752507759335,6.0604,164.97,164.94,3.57]
[1752507760235,6.0604,164.97,164.94,6.0612]
[1752507760440,6.0599,164.98,164.95,3.57]
[1752507761037,12.67590691,164.99,164.95,9.6307]
[1752507761241,6.61630691,164.99,164.95,3.57]
[1752507761541,2.08,164.98,164.95,3.57]
[1752507761841,8.1401,164.98,164.95,3.57]
[1752507763138,8.1401,164.98,164.95,9.6309]
[1752507763338,8.1401,164.98,164.96,3.57]
[1752507763631,10.59590691,164.99,164.96,3.57]
[1752507763838,6.61630691,164.99,164.96,3.57]
[1752507764039,8.1399,164.98,164.97,3.57]
[1752507765345,8.1402,164.97,164.95,3.57]
[1752507765536,2.08,164.96,164.91,3.57]
[1752507765843,2.08,164.96,164.88,89.95175703]
[1752507765844,2.08,164.92,164.88,3.57]
[1752507766047,2.08,164.92,164.9,3.57]
[1752507766339,4.53630691,164.93,164.9,3.57]
[1752507766543,4.53630691,164.93,164.9,9.6325]
[1752507766740,4.53630691,164.93,164.91,3.57]
[1752507767045,6.061,164.95,164.91,6.0622]
[1752507767237,10.59730691,164.95,164.92,3.57]
[1752507767534,12.67730691,164.95,164.92,3.57]
[1752507768641,6.0614,164.94,164.9,6.0626]
[1752507768846,4.53630691,164.93,164.85,5.09854962]
[1752507769141,2.08,164.9,164.86,3.57]
[1752507769339,2.08,164.9,164.87,6.0636]
[1752507769546,2.08,164.9,164.88,3.57]
[1752507769744,10.59890691,164.91,164.88,3.57]
[1752507769944,12.67890691,164.91,164.88,3.57]
[1752507770243,6.61630691,164.91,164.89,3.57]
[1752507770443,6.61630691,164.91,164.9,3.57]
[1752507770737,6.61630691,164.91,164.81,544.59456941]
[1752507770738,2.08,164.9,164.8,5.09854962]
[1752507770938,2.08,164.88,164.83,3.57]
[1752507771139,4.53630691,164.87,164.8,3.57]
[1752507771337,12.68040691,164.87,164.85,3.57]
[1752507771541,6.61630691,164.87,164.79,9.63485653]
[1752507771738,2.08,164.86,164.8,3.57]
[1752507771941,4.53630691,164.87,164.81,6.0658]
[1752507772141,2.08,164.86,164.82,3.57]
[1752507772445,2.08,164.85,164.82,9.6355]
[1752507772646,4.53630691,164.87,164.83,3.57]
[1752507773148,6.61630691,164.87,164.83,9.6351]
[1752507773442,6.61630691,164.87,164.84,3.57]
[1752507773638,12.68040691,164.87,164.83,6.0651]
[1752507773847,12.68040691,164.87,164.85,3.57]
[1752507774044,2.08,164.86,164.85,3.57]
[1752507774348,10.60040691,164.87,164.85,3.57]
[1752507774545,12.68040691,164.87,164.85,3.57]
[1752507774944,12.68040691,164.87,164.86,3.57]
[1752507775148,6.61630691,164.87,164.86,3.57]
[1752507775742,4.53630691,164.87,164.86,3.57]
[1752507775947,6.61630691,164.89,164.86,3.57]
[1752507776149,4.53630691,164.89,164.86,3.57]
[1752507776338,8.1429,164.9,164.86,9.634]
[1752507776545,2.08,164.89,164.88,3.57]
[1752507777148,6.61630691,164.89,164.88,3.57]
[1752507777349,6.61630691,164.89,164.86,3.57]
[1752507777748,2.08,164.87,164.79,8.10630691]
[1752507777946,2.08,164.87,164.79,4.53630691]
[1752507778146,2.08,164.87,164.8,3.57]
[1752507778347,8.1439,164.87,164.82,6.0657]
[1752507778643,4.53630691,164.85,164.78,3.57]
[1752507778844,2.08,164.84,164.8,6.0662]
[1752507779052,2.08,164.84,164.81,3.57]
[1752507779744,10.60130691,164.85,164.82,3.57]
[1752507779745,4.53630691,164.85,164.82,3.57]
[1752507779950,2.08,164.84,164.8,6.0661]
[1752507780150,2.08,164.84,164.81,3.57]
[1752507780351,4.53630691,164.85,164.81,3.57]
[1752507780751,6.62630691,164.85,164.82,6.0655]
[1752507780951,6.62630691,164.85,164.84,3.47]
[1752507781355,12.69090691,164.85,164.84,3.47]
[1752507781553,2.09,164.84,164.82,3.47]
[1752507781947,2.09,164.84,164.8,3.47]
[1752507782147,4.53630691,164.81,164.79,4.76484]
[1752507782349,2.09,164.8,164.79,4.76484]
[1752507782551,10.60260691,164.81,164.79,4.76484]
[1752507782751,12.69260691,164.81,164.79,4.76484]
[1752507782952,12.69250691,164.81,164.79,4.76484]
[1752507783857,8.1565,164.8,164.79,4.76484]
[1752507784149,8.1565,164.8,164.79,1.29484]
[1752507784850,8.1565,164.8,164.79,4e-05]
[1752507785051,6.0683,164.75,164.74,3.47]
[1752507785254,2.09,164.76,164.74,3.47]
[1752507785544,4.53630691,164.79,164.69,3.47]
[1752507785745,4.53630691,164.79,164.73,3.47]
[1752507785948,4.53630691,164.77,164.74,3.47]
[1752507786145,2.09,164.75,164.73,3.47]
[1752507786348,4.53630691,164.77,164.73,3.47]
[1752507786544,2.09,164.73,164.71,3.47]
[1752507786750,8.1587,164.74,164.72,3.47]
[1752507787145,2.09,164.73,164.67,3.47]
[1752507787349,4.53630691,164.75,164.6,6.74707934]
[1752507787350,4.53630691,164.71,164.62,3.47]
[1752507787554,2.09,164.68,164.6,4.53630691]
[1752507787752,2.09,164.7,164.63,3.47]
[1752507787959,4.53630691,164.71,164.63,3.47]
[1752507788156,6.62630691,164.72,164.69,3.47]
[1752507788353,4.53630691,164.72,164.65,3.47]
[1752507788557,6.62630691,164.74,164.69,6.0702]
[1752507788756,2.09,164.73,164.7,3.47]
[1752507788953,4.53630691,164.74,164.72,3.47]
[1752507789151,2.09,164.73,164.65,4.53630691]
[1752507789347,2.09,164.71,164.69,3.47]
[1752507789552,2.09,164.75,164.66,4.53630691]
[1752507789853,8.1584,164.75,164.69,3.47]
[1752507790048,2.09,164.77,164.7,4.53630691]
[1752507790255,6.0675,164.78,164.71,3.47]
[1752507790858,8.1575,164.78,164.74,3.47]
[1752507791058,4.53630691,164.8,164.64,4.53630691]
[1752507791354,4.53630691,164.77,164.71,3.47]
[1752507791548,6.62630691,164.77,164.71,3.47]
[1752507791753,8.1582,164.76,164.71,3.47]
[1752507791953,2.09,164.79,164.73,3.47]
[1752507792155,6.0679,164.77,164.73,3.47]
[1752507792353,528.71630691,164.81,164.73,3.47]
[1752507792547,530.80630691,164.81,164.73,3.47]
[1752507792957,6.0667,164.8,164.76,6.0677]
[1752507793158,8.1567,164.8,164.78,3.47]
[1752507793358,127.24611139,164.87,164.76,4.53630691]
[1752507793656,4.53630691,164.86,164.78,4.53630691]
[1752507793865,2.09,164.85,164.79,3.47]
[1752507794054,4.53630691,164.86,164.8,6.0662]
[1752507794251,2.09,164.85,164.81,3.47]
[1752507794455,6.0647,164.85,164.81,3.47]
[1752507794759,2.09,164.85,164.79,3.47]
[1752507794957,4.53630691,164.86,164.79,3.47]
[1752507795157,4.53630691,164.84,164.78,6.0671]
[1752507795358,2.09,164.81,164.79,3.47]
[1752507795560,2.09,164.82,164.8,3.47]
[1752507795759,2.09,164.82,164.81,3.47]
[1752507796359,303.27611139,164.87,164.81,3.47]
[1752507796560,2.09,164.85,164.77,3.47]
[1752507796762,4.53630691,164.85,164.77,3.47]
[1752507797057,2.09,164.82,164.74,4.53630691]
[1752507797260,2.09,164.82,164.8,3.47]
[1752507798059,8.1557,164.82,164.8,3.47]
[1752507798456,8.1564,164.81,164.79,3.47]
[1752507798663,2.09,164.78,164.76,3.47]
[1752507798863,2.09,164.78,164.7,4.53630691]
[1752507799065,4.53630691,164.85,164.77,3.47]
[1752507799360,6.62630691,164.85,164.77,3.47]
[1752507799560,6.0651,164.84,164.77,3.47]
[1752507799764,4.53630691,164.85,164.77,3.47]
[1752507799969,2.09,164.84,164.77,3.47]
[1752507800161,6.0657,164.83,164.8,3.47]
[1752507800465,307.8124183,164.87,164.8,3.47]
[1752507800662,305.36611139,164.87,164.82,3.47]
[1752507800869,178.12,164.87,164.82,3.47]
[1752507801164,178.12,164.87,164.81,6.066]
[1752507801368,178.12,164.87,164.83,3.47]
[1752507801560,2.09,164.85,164.83,3.47]
[1752507801958,8.155,164.84,164.8,3.47]
[1752507802163,2.09,164.82,164.81,3.47]
[1752507802363,6.62630691,164.84,164.82,3.47]
[1752507802563,12.69160691,164.84,164.82,3.47]
[1752507802765,2.09,164.83,164.74,3.47]
[1752507802964,8.1557,164.83,164.74,3.47]
[1752507803271,2.09,164.83,164.74,3.47]
[1752507803468,2.09,164.83,164.75,4.53630691]
[1752507803670,2.09,164.82,164.8,3.47]
[1752507803867,2.09,164.83,164.73,4.53630691]
[1752507804067,6.0666,164.8,164.77,3.47]
[1752507804271,2.09,164.8,164.72,4.53630691]
[1752507804468,4.53630691,164.86,164.79,3.47]
[1752507804674,184.70630691,164.86,164.79,3.47]
[1752507805271,184.70630691,164.86,164.8,3.47]
[1752507805773,6.0662,164.81,164.77,6.0673]
[1752507805971,6.0662,164.81,164.78,3.47]
[1752507806266,6.0665,164.8,164.79,3.47]
[1752507806470,6.0665,164.8,164.73,3.47]
[1752507806471,2.09,164.8,164.73,3.47]
[1752507806870,6.0667,164.8,164.76,3.47]
[1752507807070,6.62630691,164.82,164.76,3.47]
[1752507807570,6.0667,164.8,164.77,6.0675]
[1752507807767,6.0667,164.8,164.72,4.53630691]
[1752507807974,6.0667,164.8,164.79,3.47]
[1752507809274,2.09,164.82,164.81,3.47]
[1752507809573,2.09,164.81,164.78,3.47]
[1752507809774,6.62630691,164.8,164.73,3.47]
[1752507810778,6.62630691,164.82,164.74,3.33]
[1752507811277,6.0663,164.81,164.74,3.33]
[1752507811877,6.0663,164.81,164.78,6.067]
[1752507812067,6.0663,164.81,164.74,3.33]
[1752507812469,6.0663,164.81,164.79,3.33]
[1752507812674,6.0663,164.81,164.8,3.33]
[1752507813074,4.53630691,164.85,164.8,3.33]
[1752507813273,178.08,164.86,164.8,3.33]
[1752507813473,180.17,164.86,164.8,3.33]
[1752507813667,180.17,164.86,164.77,4.53630691]
[1752507813668,4.53630691,164.85,164.77,4.53630691]
[1752507813877,6.62630691,164.85,164.78,3.33]
[1752507814075,2.09,164.84,164.78,3.33]
[1752507814278,6.0656,164.83,164.81,3.33]
[1752507814583,6.0656,164.83,164.82,3.33]
[1752507815177,8.1553,164.84,164.83,3.33]
[1752507816878,2.09,164.84,164.74,5.09854962]
[1752507817177,2.09,164.82,164.74,5.09854962]
[1752507817378,4.53630691,164.83,164.76,3.33]
[1752507817574,10.60190691,164.83,164.8,6.0663]
[1752507817781,6.62630691,164.83,164.82,3.33]
[1752507818181,8.1554,164.83,164.82,3.33]
[1752507818378,6.0654,164.83,164.82,3.33]
[1752507818878,8.1554,164.83,164.82,3.33]
[1752507819279,6.0654,164.83,164.82,3.33]
[1752507820079,178.08,164.86,164.78,4.53630691]
[1752507820279,180.17,164.86,164.79,3.33]
[1752507820582,186.2344,164.86,164.83,6.065]
[1752507820773,180.17,164.86,164.85,3.33]
[1752507821180,186.2343,164.86,164.85,3.33]
[1752507821577,184.1443,164.86,164.85,3.33]
[1752507822082,6.0651,164.84,164.78,4.53630691]
[1752507822284,6.0651,164.84,164.79,3.33]
[1752507822485,6.0651,164.84,164.81,3.33]
[1752507823681,6.0651,164.84,164.81,6.0661]
[1752507823886,6.0651,164.84,164.78,4.53630691]
[1752507823887,6.0654,164.83,164.82,3.33]
[1752507824291,6.0647,164.85,164.82,3.33]
[1752507824993,6.065,164.84,164.83,3.33]
[1752507827793,6.0648,164.85,164.83,3.33]
[1752507828090,178.08,164.86,164.83,3.33]
[1752507828286,184.1445,164.86,164.83,9.395]
[1752507828496,184.1445,164.86,164.84,3.33]
[1752507828694,178.08,164.86,164.84,3.33]
[1752507829394,6.0637,164.88,164.84,3.33]
[1752507830090,6.0637,164.88,164.86,6.0642]
[1752507830290,6.0637,164.88,164.87,3.33]
[1752507830491,184.0633,164.89,164.87,3.33]
[1752507832386,6.0635,164.88,164.87,3.33]
[1752507832891,2.09,164.88,164.79,5.09854962]
[1752507833094,2.09,164.88,164.83,3.33]
[1752507833290,2.09,164.88,164.83,9.3951]
[1752507833488,6.0645,164.86,164.83,3.33]
[1752507833892,6.0638,164.88,164.86,3.33]
[1752507834295,178.0,164.89,164.86,3.33]
[1752507834794,178.0,164.89,164.87,3.33]
[1752507835396,6.0636,164.88,164.87,3.33]
[1752507837002,184.0633,164.89,164.87,3.33]
[1752507838003,178.0,164.89,164.87,3.33]
[1752507838500,184.0634,164.89,164.87,3.33]
[1752507838802,184.0634,164.89,164.87,6.0637]
[1752507838990,184.0634,164.89,164.88,3.33]
[1752507839696,6.0634,164.89,164.88,3.33]
[1752507839898,6.063,164.9,164.88,3.33]
[1752507840801,6.0632,164.89,164.88,3.33]
[1752507841301,8.1532,164.89,164.88,3.33]
[1752507841898,6.0632,164.89,164.88,3.33]
[1752507842194,6.0639,164.87,164.86,3.48]
[1752507842402,2.09,164.87,164.84,3.48]
[1752507842598,6.0643,164.86,164.85,3.48]
[1752507842801,2.09,164.86,164.85,3.48]
[1752507843196,6.0643,164.86,164.85,3.48]
[1752507843398,4.53630691,164.89,164.81,3.48]
[1752507843597,2.09,164.87,164.81,3.48]
[1752507843798,6.0652,164.84,164.82,3.48]
[1752507844098,6.62630691,164.87,164.82,3.48]
[1752507844302,6.0653,164.84,164.82,3.48]
[1752507844603,2.09,164.86,164.82,3.48]
[1752507844800,2.09,164.86,164.83,3.48]
[1752507844998,177.92,164.92,164.83,3.48]
[1752507844999,6.62630691,164.89,164.83,3.48]
[1752507845198,6.0635,164.88,164.83,3.48]
[1752507845502,6.0635,164.88,164.86,3.48]
[1752507846594,6.0639,164.87,164.86,3.48]
[1752507848500,6.0637,164.88,164.86,3.48]
[1752507848901,6.0637,164.88,164.86,6.0641]
[1752507849205,6.0637,164.88,164.87,3.48]
[1752507850802,6.0649,164.85,164.83,3.48]
[1752507851600,6.0649,164.85,164.84,3.48]
[1752507853402,8.1549,164.85,164.84,3.48]
[1752507853801,6.0657,164.83,164.82,3.48]
[1752507854210,8.1557,164.83,164.82,3.48]
[1752507854498,6.0657,164.83,164.82,3.48]
[1752507854894,8.1552,164.84,164.77,4.53630691]
[1752507855096,6.0652,164.84,164.83,3.48]
[1752507855302,8.1552,164.84,164.83,3.48]
[1752507855502,6.0652,164.84,164.83,3.48]
[1752507856302,6.0648,164.85,164.82,6.0657]
[1752507856508,6.0648,164.85,164.84,3.48]
[1752507856704,6.0641,164.87,164.84,9.5447]
[1752507856909,6.62630691,164.89,164.84,9.5447]
[1752507856910,2.09,164.89,164.85,3.48]
[1752507857206,177.9,164.9,164.85,8.01630691]
[1752507857401,177.9,164.9,164.85,4.53630691]
[1752507857607,6.0637,164.88,164.86,3.48]
[1752507857907,179.99,164.9,164.86,3.48]
[1752507858107,2.09,164.88,164.84,3.48]
[1752507858802,6.0643,164.86,164.85,3.48]
[1752507859008,2.09,164.89,164.85,3.48]
[1752507859214,6.0642,164.87,164.85,3.48]
[1752507859999,6.0643,164.86,164.85,3.48]
[1752507861015,8.1543,164.86,164.85,3.48]
[1752507861307,6.0643,164.86,164.85,3.48]
[1752507861604,6.0652,164.84,164.82,9.5455]
[1752507861810,2.09,164.86,164.82,6.0655]
[1752507862005,2.09,164.86,164.83,3.48]
[1752507862308,2.09,164.88,164.84,3.48]
[1752507862611,6.0645,164.86,164.84,3.48]
[1752507863012,2.09,164.9,164.84,3.48]
[1752507863304,2.09,164.92,164.87,3.48]
[1752507864204,6.0631,164.9,164.88,3.48]
[1752507865110,6.0626,164.91,164.88,6.0635]
[1752507865313,2.09,164.92,164.89,3.48]
[1752507865702,6.0632,164.89,164.86,4.53630691]
[1752507866210,6.0636,164.88,164.87,3.48]
[1752507866405,8.1536,164.88,164.87,3.48]
[1752507867209,6.0636,164.88,164.87,3.48]
[1752507870215,6.0632,164.89,164.87,3.48]
[1752507870417,2.08,164.93,164.87,3.48]
[1752507870815,2.08,164.93,164.89,3.32]
[1752507871416,6.0628,164.9,164.89,3.32]
[1752507872517,8.1428,164.9,164.89,3.32]
[1752507872719,2.08,164.9,164.84,4.53630691]
[1752507872908,6.61630691,164.92,164.84,4.53630691]
[1752507873309,6.61630691,164.92,164.86,6.0641]
[1752507873516,4.53630691,164.92,164.87,3.32]
[1752507873710,6.0634,164.89,164.87,9.3838]
[1752507873915,2.08,164.93,164.88,3.32]
[1752507874416,6.0626,164.91,164.9,3.32]
[1752507875019,177.8,164.94,164.85,5.09854962]
[1752507875213,2.08,164.93,164.88,3.32]
[1752507875524,2.08,164.93,164.88,6.0633]
[1752507875821,2.08,164.93,164.89,3.32]
[1752507876317,2.08,164.93,164.9,6.24107399]
[1752507876525,2.08,164.93,164.91,6.24107399]
[1752507876820,8.1417,164.93,164.92,6.24107399]
[1752507877719,6.0617,164.93,164.92,6.24107399]
[1752507878021,8.1417,164.93,164.92,6.24107399]
[1752507878219,2.08,164.93,164.87,3.32]
[1752507879018,2.08,164.91,164.87,3.32]
[1752507879521,6.0635,164.88,164.87,3.32]
[1752507879723,2.08,164.91,164.87,3.32]
[1752507880319,2.08,164.93,164.89,3.32]
[1752507880512,6.0628,164.9,164.89,3.32]
[1752507881621,177.78,164.93,164.89,3.32]
[1752507881824,184.37630691,164.95,164.89,3.32]
[1752507882319,2.08,164.96,164.91,3.32]
[1752507882522,524.24,164.97,164.91,3.32]
[1752507882722,6.0616,164.94,164.92,6.0618]
[1752507882918,6.0616,164.94,164.93,3.32]
[1752507889719,8.1416,164.94,164.93,3.32]
[1752507889931,2.08,164.94,164.86,4.53630691]
[1752507890124,2.08,164.93,164.86,4.53630691]
[1752507890324,2.08,164.93,164.89,3.32]
[1752507890528,2.08,164.92,164.89,3.32]
[1752507890826,6.0624,164.91,164.9,3.32]
[1752507891024,8.1424,164.91,164.9,3.32]
[1752507891226,2.08,164.92,164.89,3.32]
[1752507891421,2.08,164.91,164.89,3.32]
[1752507891728,2.08,164.91,164.86,6.0642]
[1752507892227,6.0635,164.88,164.87,3.32]
[1752507894528,6.0633,164.89,164.87,3.32]
[1752507894825,6.0633,164.89,164.86,6.0642]
[1752507894826,6.0633,164.89,164.88,3.32]
[1752507897827,6.0629,164.9,164.88,3.32]
[1752507898134,530.86630691,164.97,164.89,3.32]
[1752507898334,6.0615,164.94,164.92,6.062]
[1752507898634,6.0615,164.94,164.93,3.32]
[1752507900730,524.24,164.97,164.93,3.32]
[1752507900931,6.6191335,164.97,164.93,3.32]
[1752507901131,2.09,164.94,164.9,3.53]
[1752507901428,2.09,164.93,164.87,4.5291335]
[1752507901628,4.5291335,164.91,164.84,9.62768312]
[1752507901928,2.09,164.89,164.85,3.53]
[1752507902328,6.0643,164.86,164.85,3.53]
[1752507902734,8.1543,164.86,164.85,3.53]
[1752507902935,2.09,164.86,164.82,3.53]
[1752507903135,2.09,164.83,164.82,3.53]
[1752507903536,4.5291335,164.84,164.82,3.53]
[1752507903838,6.6191335,164.84,164.82,3.53]
[1752507904241,6.0654,164.83,164.82,3.53]
[1752507904540,6.6191335,164.84,164.78,3.53]
[1752507904735,6.6191335,164.84,164.78,6.067]
[1752507904935,6.6191335,164.84,164.79,3.53]
[1752507905540,6.0661,164.81,164.79,3.53]
[1752507905835,6.0661,164.81,164.75,5.09854962]
[1752507905836,2.09,164.81,164.8,3.53]
[1752507906044,2.09,164.81,164.78,3.53]
[1752507906337,2.09,164.81,164.76,3.53]
[1752507906528,2.09,164.79,164.73,4.5291335]
[1752507906732,4.5291335,164.8,164.74,6.0684]
[1752507906936,2.09,164.79,164.76,3.53]
[1752507907243,4.5291335,164.78,164.73,3.53]
[1752507907433,2.09,164.79,164.76,3.53]
[1752507907635,6.0676,164.77,164.71,3.53]
[1752507907839,6.6191335,164.78,164.72,6.0692]
[1752507908040,6.0682,164.76,164.73,3.53]
[1752507908437,6.0682,164.76,164.74,3.53]
[1752507908845,6.0677,164.77,164.74,3.53]
[1752507909039,6.6191335,164.78,164.74,3.53]
[1752507909444,6.0682,164.76,164.74,3.53]
[1752507909847,4.5291335,164.78,164.74,3.53]
[1752507910046,2.09,164.77,164.74,3.53]
[1752507910748,6.0682,164.76,164.74,3.53]
[1752507911143,6.0682,164.76,164.73,3.53]
[1752507911344,6.068,164.76,164.73,3.53]
[1752507911542,6.068,164.76,164.74,3.53]
[1752507911750,4.5291335,164.78,164.74,3.53]
[1752507911942,6.0679,164.77,164.74,3.53]
[1752507912253,2.09,164.77,164.71,3.53]
[1752507912446,6.068,164.76,164.72,6.0692]
[1752507912644,6.068,164.76,164.73,3.53]
[1752507912845,2.09,164.77,164.68,177.68]
[1752507913050,6.069,164.74,164.71,3.53]
[1752507913250,6.6191335,164.76,164.71,3.53]
[1752507913751,6.6191335,164.76,164.68,182.2091335]
[1752507913752,6.6191335,164.76,164.73,3.53]
[1752507913954,4.5291335,164.76,164.73,3.53]
[1752507914144,6.6191335,164.76,164.73,3.53]
[1752507914858,2.09,164.75,164.74,3.53]
[1752507915051,2.09,164.75,164.69,3.53]
[1752507915255,2.09,164.73,164.65,4.5291335]
[1752507915457,2.09,164.73,164.66,3.53]
[1752507915851,4.5291335,164.74,164.68,6.0709]
[1752507916055,2.09,164.72,164.7,3.53]
[1752507916257,6.0694,164.72,164.71,3.53]
[1752507916650,2.09,164.73,164.71,3.53]
[1752507916856,2.09,164.73,164.72,3.53]
[1752507917054,8.1592,164.73,164.72,3.53]
[1752507917956,2.09,164.73,164.69,3.53]
[1752507918156,2.09,164.7,164.69,3.53]
[1752507918558,2.09,164.69,164.64,3.53]
[1752507918752,6.6191335,164.7,164.64,3.53]
[1752507918956,2.09,164.69,164.64,3.53]
[1752507919154,4.5291335,164.7,164.64,3.53]
[1752507919356,6.6191335,164.68,164.6,4.5291335]
[1752507919655,6.0719,164.66,164.61,3.53]
[1752507919855,4.5291335,164.69,164.64,3.53]
[1752507920058,6.0719,164.66,164.64,3.53]
[1752507920359,4.5291335,164.67,164.59,4.5291335]
[1752507920562,6.0716,164.66,164.6,3.53]
[1752507921056,4.5291335,164.67,164.6,3.53]
[1752507921253,4.5291335,164.72,164.64,6.0723]
[1752507921457,702.26,164.75,164.61,4.5291335]
[1752507921458,4.5291335,164.69,164.61,4.5291335]
[1752507921660,6.6191335,164.67,164.63,3.53]
[1752507921860,6.6191335,164.67,164.64,3.53]
[1752507921861,2.09,164.65,164.64,3.53]
[1752507922060,6.6191335,164.65,164.55,3.53]
[1752507922255,4.54807286,164.7,164.62,3.53]
[1752507922555,2.09,164.69,164.63,6.0725]
[1752507922757,6.072,164.65,164.64,3.53]
[1752507923161,6.072,164.65,164.54,12.1518]
[1752507923162,2.09,164.64,164.62,3.53]
[1752507923362,8.1626,164.64,164.62,3.53]
[1752507923552,8.1626,164.64,164.63,3.53]
[1752507923751,2.09,164.64,164.61,3.53]
[1752507923958,2.09,164.63,164.61,3.53]
[1752507924159,2.09,164.62,164.58,3.53]
[1752507924463,2.09,164.64,164.61,3.53]
[1752507924866,2.09,164.65,164.61,3.53]
[1752507925065,8.1631,164.62,164.61,3.53]
[1752507925255,4.54855376,164.62,164.49,12.1557]
[1752507925459,4.54855376,164.62,164.57,3.53]
[1752507925658,2.09,164.63,164.57,3.53]
[1752507925962,6.63855376,164.64,164.57,3.53]
[1752507926158,6.63855376,164.64,164.59,6.0742]
[1752507926159,6.073,164.63,164.59,6.0742]
[1752507926354,2.09,164.63,164.6,3.53]
[1752507926559,2.09,164.63,164.55,4.54855376]
[1752507926757,2.09,164.62,164.6,3.53]
[1752507927552,2.09,164.62,164.61,3.53]
[1752507928262,6.0711,164.68,164.65,6.0717]
[1752507928465,2.09,164.69,164.64,3.53]
[1752507928765,4.54855376,164.7,164.64,3.53]
[1752507928958,524.48,164.75,164.65,4.54855376]
[1752507929157,4.54855376,164.74,164.66,3.53]
[1752507929358,2.09,164.73,164.66,3.53]
[1752507929563,526.57,164.75,164.68,3.53]
[1752507930161,2.09,164.74,164.68,3.53]
[1752507930468,2.09,164.7,164.64,9.3822]
[1752507930662,2.09,164.7,164.66,3.31]
[1752507930864,4.54855376,164.69,164.62,3.31]
[1752507931060,2.09,164.68,164.63,3.31]
[1752507931263,2.09,164.67,164.64,3.31]
[1752507931665,6.0719,164.66,164.63,6.0725]
[1752507931861,2.09,164.67,164.65,3.31]
[1752507932765,6.0716,164.66,164.65,3.31]
[1752507932966,4.54855376,164.67,164.63,3.31]
[1752507933269,2.09,164.65,164.63,3.31]
[1752507933766,2.09,164.63,164.61,3.31]
[1752507933959,2.09,164.63,164.58,3.31]
[1752507934159,2.09,164.62,164.59,3.31]
[1752507934365,6.63855376,164.61,164.53,7.85855376]
[1752507934568,2.09,164.61,164.54,3.31]
[1752507934764,4.54855376,164.62,164.58,3.31]
[1752507935064,4.54855376,164.62,164.53,4.54855376]
[1752507935065,6.63855376,164.62,164.59,3.31]
[1752507935265,6.0738,164.6,164.59,3.31]
[1752507935567,2.09,164.6,164.54,3.31]
[1752507935866,2.09,164.6,164.56,6.0751]